bitfinex-derivatives/quotes_ETHF0:USTF0_20241229
["timestamp","ask_amount","ask_price","bid_price","bid_amount"]
[1735498425607,0.7299,3364.9,3364.8,0.4343]
[1735498430119,0.29775,3364.4,3364.3,3.2078]
[1735498430310,2.53714656,3364.4,3364.3,3.2078]
[1735498431014,2.23939656,3364.4,3364.3,3.2078]
[1735498434116,2.67539656,3364.4,3364.3,3.2078]
[1735498434314,2.97314656,3364.4,3364.3,3.2078]
[1735498435423,0.29776,3364.3,3364.0,0.8905]
[1735498435613,0.75176,3364.3,3364.0,0.8905]
[1735498436213,2.53716656,3364.1,3364.0,0.8905]
[1735498436422,2.53716656,3364.1,3364.0,0.4567]
[1735498439423,0.29779,3363.9,3363.8,3.2078]
[1735498440729,2.23939656,3364.1,3363.8,3.2078]
[1735498441032,0.29779,3363.9,3363.8,3.2078]
[1735498441729,0.29779,3364.0,3363.8,3.2078]
[1735498442129,0.29779,3364.0,3363.9,0.4454]
[1735498442725,2.23939656,3364.1,3363.9,0.8808]
[1735498442924,3.2078,3364.0,3362.8,7.84738735]
[1735498443127,2.23939656,3363.2,3362.8,7.84738735]
[1735498443324,0.29786,3363.2,3362.9,0.4454]
[1735498443533,0.29787,3363.1,3362.9,0.8817]
[1735498443729,0.29787,3363.0,3362.9,0.8817]
[1735498444136,2.23939656,3363.0,3362.9,0.8817]
[1735498445840,2.23939656,3363.0,3362.4,0.29792]
[1735498446038,2.23939656,3363.0,3362.5,1.3924]
[1735498446232,2.53726656,3363.0,3362.5,1.3924]
[1735498446846,0.29788,3362.9,3362.5,1.3924]
[1735498449436,0.29789,3362.8,3362.5,1.3924]
[1735498451737,2.23939656,3363.0,3362.5,1.3924]
[1735498452046,0.29789,3362.8,3362.5,1.3924]
[1735498456646,0.2979,3362.7,3362.5,1.3924]
[1735498457637,0.29789,3362.8,3362.5,1.3924]
[1735498458033,0.29788,3362.9,3362.5,1.69031]
[1735498458233,0.29789,3362.8,3362.6,0.2979]
[1735498458444,0.29789,3362.8,3362.5,1.3924]
[1735498458648,0.29789,3362.8,3362.5,1.69031]
[1735498458944,2.23939656,3363.0,3362.5,1.3924]
[1735498459442,0.2979,3362.7,3362.5,1.69031]
[1735498460439,2.23939656,3363.0,3362.5,1.3924]
[1735498460647,0.29789,3362.8,3362.6,0.2979]
[1735498460848,3.2078,3363.2,3362.5,6.3924]
[1735498461146,5.44719656,3363.6,3362.8,3.2078]
[1735498461645,0.29786,3363.2,3363.0,0.29787]
[1735498461844,0.29786,3363.2,3363.1,0.933]
[1735498462045,0.29785,3363.3,3363.1,1.66866]
[1735498463445,0.29785,3363.2,3363.1,1.3708]
[1735498463646,0.29785,3363.2,3363.1,0.9224]
[1735498463850,0.29785,3363.2,3363.1,0.4846]
[1735498464149,0.29791,3362.6,3362.4,0.9025]
[1735498464345,0.29791,3362.6,3362.5,0.4639]
[1735498464939,0.2979,3362.6,3362.5,0.4639]
[1735498465348,0.29448461,3362.6,3362.5,0.4639]
[1735498466247,2.23939656,3363.2,3362.5,0.4639]
[1735498466749,3.2078,3363.1,3362.5,0.4639]
[1735498466950,0.29789,3362.8,3362.6,0.2979]
[1735498467147,3.6525,3363.1,3362.5,0.4639]
[1735498467453,0.2979,3362.6,3362.5,0.4639]
[1735498468655,0.2979,3362.6,3362.5,0.76181]
[1735498470155,4.84768,3363.1,3362.5,0.4639]
[1735498470457,3.6525,3363.1,3362.5,0.4639]
[1735498470659,0.29789,3362.8,3362.7,0.29789]
[1735498471052,0.29788,3362.9,3362.7,0.29789]
[1735498471758,0.29788,3362.9,3362.5,0.4639]
[1735498471958,3.2078,3363.1,3362.5,0.4639]
[1735498472156,0.29788,3362.9,3362.7,0.29789]
[1735498472356,0.29789,3362.8,3362.7,0.29789]
[1735498472951,0.29789,3362.8,3362.6,0.2979]
[1735498474354,0.2979,3362.7,3362.5,5.40138735]
[1735498475760,0.4488,3363.1,3362.5,5.10348735]
[1735498475962,0.29789,3362.8,3362.6,0.2979]
[1735498477660,0.29789,3362.8,3362.6,4.93748735]
[1735498477862,0.29789,3362.8,3362.7,3.5057]
[1735498478154,0.29789,3362.8,3362.7,3.2078]
[1735498479358,0.29789,3362.8,3362.7,7.84738735]
[1735498480562,0.78189,3362.8,3362.7,7.84738735]
[1735498482364,0.78189,3362.8,3362.7,4.63958735]
[1735498485067,0.78189,3362.8,3362.7,5.60568366]
[1735498486164,0.78189,3362.8,3362.7,12.55700634]
[1735498488661,0.484,3362.8,3362.7,12.55700634]
[1735498488862,0.484,3362.8,3362.7,12.85490634]
[1735498489058,0.484,3362.8,3362.7,15.23917904]
[1735498490268,0.484,3362.8,3362.7,17.12464387]
[1735498490765,2.23939656,3362.9,3362.7,17.12464387]
[1735498491160,2.23939656,3362.9,3362.8,0.29789]
[1735498491767,2.23939656,3362.9,3362.8,15.26222351]
[1735498492565,3.50284757,3363.2,3362.8,14.96433351]
[1735498492767,0.76007,3363.0,3362.8,14.96433351]
[1735498493857,0.76007,3363.0,3362.9,12.62362488]
[1735498494265,1.82363132,3363.0,3362.9,12.62362488]
[1735498496263,5.32647889,3363.0,3362.9,5.60568366]
[1735498497066,6.39004021,3363.0,3362.9,5.60568366]
[1735498497467,6.39004021,3363.0,3362.9,4.06311255]
[1735498497665,0.29788,3362.9,3362.8,4.31329871]
[1735498498165,5.0,3362.9,3362.5,9.35864985]
[1735498498374,5.0,3362.9,3362.5,5.89864412]
[1735498498375,5.45587967,3362.6,3362.5,5.89864412]
[1735498498670,5.45587967,3362.6,3362.3,10.87497137]
[1735498498671,0.29792,3362.4,3362.3,10.87497137]
[1735498498865,0.29792,3362.4,3362.3,10.37657137]
[1735498499062,5.29792,3362.4,3362.3,10.37657137]
[1735498499263,0.298,3361.6,3361.4,10.37657137]
[1735498499568,2.24807967,3361.5,3361.4,10.37657137]
[1735498500773,2.24807967,3361.5,3361.1,0.4646]
[1735498500774,6.20785679,3361.5,3361.1,0.4646]
[1735498501172,6.50585679,3361.5,3361.1,0.4646]
[1735498501569,0.29801,3361.4,3361.0,3.2078]
[1735498501773,2.24807967,3361.2,3361.0,3.2078]
[1735498502170,4.58972867,3361.2,3361.0,3.2078]
[1735498502474,0.29804,3361.1,3361.0,3.2078]
[1735498503475,4.58972867,3361.2,3361.0,3.2078]
[1735498503676,4.88775867,3361.2,3361.0,3.2078]
[1735498503975,0.29804,3361.1,3361.0,3.2078]
[1735498504865,4.88775867,3361.2,3361.0,3.2078]
[1735498505472,2.54610967,3361.2,3361.0,3.2078]
[1735498505971,0.29804,3361.1,3361.0,3.2078]
[1735498508577,2.24807967,3361.2,3361.0,3.2078]
[1735498508772,2.54610967,3361.2,3361.0,3.2078]
[1735498508970,2.24807967,3361.5,3361.0,3.2078]
[1735498509275,2.24807967,3361.5,3361.1,0.4799]
[1735498509471,0.29802,3361.4,3361.1,0.4799]
[1735498509667,2.24807967,3361.2,3361.1,0.4799]
[1735498510669,2.54610967,3361.2,3361.1,0.4799]
[1735498510871,2.24807967,3361.2,3361.1,0.4799]
[1735498511777,2.54610967,3361.2,3361.1,0.4799]
[1735498515781,2.24807967,3361.2,3361.1,0.4799]
[1735498516474,2.54610967,3361.2,3361.1,0.4799]
[1735498516878,0.29801,3361.4,3361.1,0.4799]
[1735498517082,0.29801,3361.4,3361.2,0.4498]
[1735498517378,2.54608967,3361.5,3361.2,0.4498]
[1735498518575,0.29802,3361.4,3361.2,0.4498]
[1735498519181,2.24807967,3361.5,3361.2,0.4498]
[1735498519381,2.54608967,3361.5,3361.2,0.4498]
[1735498520183,2.24807967,3361.5,3361.2,0.4498]
[1735498520482,0.29801,3361.4,3361.2,0.4498]
[1735498522678,2.54608967,3361.5,3361.2,0.4498]
[1735498522884,0.29801,3361.4,3361.2,0.4498]
[1735498524883,2.54608967,3361.5,3361.2,0.4498]
[1735498525485,0.29801,3361.4,3361.2,0.4498]
[1735498525784,2.24807967,3361.5,3361.2,0.4498]
[1735498525981,3.2078,3361.7,3361.2,0.4498]
[1735498526186,1.06420442,3361.6,3361.4,0.29801]
[1735498526484,1.06420442,3361.6,3361.5,0.4555]
[1735498528194,3.2078,3361.7,3361.5,0.4555]
[1735498528486,3.50579,3361.7,3361.5,0.4555]
[1735498529686,3.2078,3361.7,3361.5,0.4555]
[1735498530390,2.24818189,3361.9,3361.5,0.4555]
[1735498530595,0.29798,3361.8,3361.5,0.7535]
[1735498530795,2.24818189,3361.9,3361.5,0.4555]
[1735498530997,0.29799,3361.7,3361.5,0.4555]
[1735498531195,0.29798,3361.8,3361.5,0.4555]
[1735498531496,0.29799,3361.7,3361.5,0.4555]
[1735498532588,0.29798,3361.8,3361.5,0.7535]
[1735498532794,2.24818189,3361.9,3361.5,0.7535]
[1735498532993,3.2078,3362.0,3361.5,0.4555]
[1735498533194,2.341649,3362.3,3361.8,3.2078]
[1735498533393,2.341649,3362.3,3362.0,0.29795]
[1735498533699,2.341649,3362.3,3362.1,0.4838]
[1735498534097,2.24818189,3362.5,3362.1,0.4838]
[1735498534400,0.29794,3362.3,3362.1,0.4838]
[1735498535999,2.24818189,3362.5,3362.1,0.4838]
[1735498536193,2.54610189,3362.5,3362.1,0.78174]
[1735498536395,2.54610189,3362.5,3362.2,0.476]
[1735498536995,2.54610189,3362.5,3362.2,0.77393]
[1735498536996,2.24818189,3362.5,3362.2,0.77393]
[1735498537309,2.24818189,3362.5,3362.3,0.29792]
[1735498537495,3.2078,3362.6,3362.3,0.29792]
[1735498538605,2.639549,3362.7,3362.3,0.29792]
[1735498538806,0.2979,3362.7,3362.3,0.29792]
[1735498539405,4.58983089,3362.8,3362.2,3.6838]
[1735498539700,4.58983089,3362.8,3362.3,0.29792]
[1735498539906,0.2979,3362.7,3362.3,0.29792]
[1735498540603,0.2979,3362.7,3362.2,3.6838]
[1735498540803,0.2979,3362.7,3362.2,3.98173]
[1735498543004,0.2979,3362.7,3362.3,3.2078]
[1735498543508,2.24818189,3362.8,3362.3,3.2078]
[1735498543810,0.2979,3362.7,3362.3,3.50573]
[1735498544010,0.2979,3362.7,3362.3,3.2078]
[1735498544709,0.29791,3362.6,3362.3,3.2078]
[1735498547005,0.29792,3362.4,3362.3,3.2078]
[1735498548410,1.36177563,3362.4,3362.3,3.2078]
[1735498549923,1.06385563,3362.4,3362.3,3.2078]
[1735498550808,1.36177563,3362.4,3362.3,3.2078]
[1735498551708,2.825149,3362.9,3362.3,3.2078]
[1735498551709,0.29792,3362.5,3362.3,3.2078]
[1735498552109,1.06385563,3362.7,3362.4,0.29791]
[1735498552412,1.06385563,3362.7,3362.5,0.4508]
[1735498552918,1.36175563,3362.7,3362.5,0.4508]
[1735498554212,0.2979,3362.7,3362.5,0.4508]
[1735498557314,0.4868,3363.0,3362.5,0.4508]
[1735498558007,0.29789,3362.8,3362.5,0.74871]
[1735498558612,0.29788,3362.9,3362.5,0.4508]
[1735498558807,0.29788,3362.9,3362.6,0.2979]
[1735498559001,5.549449,3363.1,3362.7,0.4798]
[1735498559206,5.549449,3363.1,3362.8,0.4629]
[1735498559406,5.549449,3363.1,3362.8,0.76078]
[1735498559813,5.549449,3363.1,3362.8,0.4629]
[1735498560115,3.50566,3363.1,3362.8,0.4629]
[1735498560514,2.639509,3363.2,3362.8,3.96858]
[1735498560711,0.29786,3363.1,3362.8,3.6707]
[1735498562114,0.29787,3363.0,3362.8,3.6707]
[1735498562316,0.29787,3363.1,3362.8,3.6707]
[1735498563811,0.29787,3363.1,3362.8,0.4629]
[1735498571314,0.29786,3363.1,3362.8,0.4629]
[1735498571519,0.29787,3363.0,3362.8,0.4629]
[1735498571825,0.29786,3363.1,3362.8,0.4629]
[1735498573227,2.639509,3363.1,3362.8,0.4629]
[1735498573427,0.29787,3363.0,3362.8,0.4629]
[1735498574128,2.639519,3363.1,3362.8,0.4629]
[1735498574325,1.06337194,3363.0,3362.8,0.4629]
[1735498575330,1.36125194,3363.0,3362.8,0.4629]
[1735498576526,3.70290094,3363.0,3362.8,0.4629]
[1735498579231,2.639529,3362.9,3362.8,0.4629]
[1735498579824,2.341649,3362.9,3362.7,3.2078]
[1735498580023,2.35586194,3362.8,3362.7,3.2078]
[1735498581233,7.03933866,3362.8,3362.7,3.2078]
[1735498581528,7.31868497,3362.8,3362.7,3.2078]
[1735498582732,13.04770236,3362.8,3362.7,3.2078]
[1735498584125,8.48955415,3362.8,3362.7,3.2078]
[1735498584735,0.29792,3362.5,3362.3,3.2078]
[1735498585031,1.36129194,3362.5,3362.3,3.2078]
[1735498585833,3.51308045,3362.4,3362.3,3.2078]
[1735498586636,3.81100045,3362.4,3362.3,3.2078]
[1735498587228,3.51308045,3362.4,3362.3,3.50573]
[1735498588724,2.34174778,3362.6,3362.3,15.0023178]
[1735498588928,2.34174778,3362.6,3362.5,0.29791]
[1735498589539,1.57564778,3362.6,3362.5,0.29791]
[1735498589736,0.80954778,3362.6,3362.5,0.29791]
[1735498590038,3.51308045,3362.9,3362.8,0.29789]
[1735498590225,3.81096045,3362.9,3362.8,0.29789]
[1735498590429,3.51308045,3362.9,3362.8,0.29789]
[1735498591033,3.81095045,3363.0,3362.8,0.29789]
[1735498591535,3.81095045,3363.0,3362.7,3.2078]
[1735498591536,3.51308045,3363.0,3362.7,3.2078]
[1735498591739,0.29788,3362.9,3362.7,3.50569]
[1735498591940,3.81095045,3363.0,3362.7,3.50569]
[1735498592736,3.81095045,3363.0,3362.8,0.5093]
[1735498592937,3.81095045,3363.0,3362.8,0.9954]
[1735498593932,3.51308045,3363.0,3362.8,0.9954]
[1735498594536,3.51308045,3363.0,3362.8,1.29329]
[1735498595136,3.51308045,3363.0,3362.8,0.9954]
[1735498595536,3.81095045,3363.0,3362.8,0.9954]
[1735498596243,3.51308045,3363.0,3362.8,0.9954]
[1735498598339,3.51308045,3363.0,3362.8,1.29329]
[1735498598842,3.51308045,3363.0,3362.8,0.9954]
[1735498599340,3.81095045,3363.0,3362.8,0.9954]
[1735498599942,3.81095045,3363.0,3362.8,4.2032]
[1735498600631,4.57645239,3363.0,3362.8,3.6939]
[1735498600840,0.2979,3362.7,3362.6,6.99061384]
[1735498601141,1.36127194,3362.7,3362.6,6.99061384]
[1735498601840,1.36127194,3362.7,3362.6,5.58010132]
[1735498602036,9.57645239,3362.7,3362.0,9.30800713]
[1735498602246,1.36132194,3362.1,3362.0,9.30800713]
[1735498602741,2.42469388,3362.1,3362.0,9.30800713]
[1735498602939,1.36132194,3362.1,3362.0,9.30800713]
[1735498603942,1.51037396,3362.1,3361.2,4.50583]
[1735498604140,1.36138194,3361.4,3361.2,4.2078]
[1735498604339,0.29801,3361.4,3361.2,4.2078]
[1735498605246,0.298,3361.6,3361.2,4.2078]
[1735498605544,3.50959543,3361.5,3361.2,4.2078]
[1735498605840,3.80760543,3361.5,3361.2,4.2078]
[1735498606345,0.29802,3361.3,3361.2,4.2078]
[1735498606541,0.29802,3361.3,3361.2,1.0]
[1735498608344,3.80760543,3361.4,3361.2,1.0]
[1735498608846,0.29802,3361.3,3361.2,1.0]
[1735498611444,0.29802,3361.4,3361.2,1.0]
[1735498613549,0.29802,3361.4,3361.3,0.4866]
[1735498614050,0.29802,3361.4,3361.3,1.4598]
[1735498622957,0.298,3361.6,3361.3,1.4598]
[1735498623753,3.2078,3361.8,3361.5,0.298]
[1735498624259,2.24886549,3362.1,3361.6,3.2078]
[1735498624459,0.29794,3362.2,3361.7,0.29798]
[1735498624958,0.29794,3362.2,3361.8,0.5081]
[1735498625257,0.29794,3362.2,3361.9,0.9685]
[1735498625656,5.75846092,3362.4,3361.9,0.9685]
[1735498625857,0.29795,3362.1,3361.9,0.9685]
[1735498626063,2.24886549,3362.4,3361.9,0.9685]
[1735498626257,0.29796,3362.1,3361.9,0.9685]
[1735498627860,3.2078,3362.3,3361.9,0.9685]
[1735498628057,0.29796,3362.1,3361.9,0.9685]
[1735498629458,0.29794,3362.2,3361.9,0.9685]
[1735498630158,3.50574,3362.3,3361.9,0.9685]
[1735498630452,3.50574,3362.3,3361.9,1.26646]
[1735498630453,3.50573,3362.3,3361.9,1.26646]
[1735498630658,3.2078,3362.3,3361.9,0.9685]
[1735498630859,3.2078,3362.3,3362.0,0.29795]
[1735498632756,3.50573,3362.3,3362.0,0.29795]
[1735498633059,0.29793,3362.3,3362.0,3.2078]
[1735498634264,0.29793,3362.3,3362.0,3.50576]
[1735498634455,0.29793,3362.3,3362.0,3.2078]
[1735498635360,2.24886549,3362.4,3362.0,3.2078]
[1735498635656,0.29793,3362.3,3362.0,3.50575]
[1735498636764,0.29793,3362.3,3362.0,3.2078]
[1735498638162,5.45666549,3362.7,3362.0,3.2078]
[1735498638163,2.24886549,3362.4,3362.0,3.2078]
[1735498638663,0.29794,3362.2,3362.0,3.2078]
[1735498640464,0.29794,3362.3,3362.0,3.2078]
[1735498640863,5.72266549,3362.7,3362.0,3.2078]
[1735498641056,0.29794,3362.2,3362.0,3.2078]
[1735498643569,9.23226092,3362.7,3362.0,3.2078]
[1735498643869,0.29794,3362.3,3362.0,3.2078]
[1735498644975,5.72266549,3362.7,3362.0,3.2078]
[1735498645165,0.29794,3362.2,3362.0,3.2078]
[1735498647774,9.23226092,3362.7,3362.0,3.2078]
[1735498647976,0.29793,3362.4,3362.0,3.2078]
[1735498648173,0.29793,3362.4,3362.0,3.50575]
[1735498649472,5.45666549,3362.7,3362.0,3.50575]
[1735498649672,0.29793,3362.3,3362.0,3.50575]
[1735498652581,0.29794,3362.2,3362.0,3.50575]
[1735498653083,5.45666549,3362.7,3362.2,0.29793]
[1735498653381,0.29791,3362.6,3362.0,3.2078]
[1735498653584,0.29791,3362.6,3362.3,0.29793]
[1735498654075,0.29791,3362.6,3362.4,1.7413]
[1735498654381,0.29791,3362.6,3362.5,3.2078]
[1735498656479,0.29791,3362.6,3362.4,1.7413]
[1735498659081,5.75846092,3363.0,3362.4,1.7413]
[1735498659285,0.2979,3362.7,3362.4,1.7413]
[1735498659983,0.2979,3362.7,3362.5,3.2078]
[1735498660182,2.24886549,3363.0,3362.5,3.2078]
[1735498660383,0.2979,3362.7,3362.5,3.2078]
[1735498660582,0.2979,3362.6,3362.5,3.2078]
[1735498661896,0.2979,3362.6,3362.4,1.7413]
[1735498663393,5.75846092,3363.0,3362.4,1.7413]
[1735498663593,0.2979,3362.6,3362.4,1.7413]
[1735498663793,0.29788,3362.9,3362.4,1.7413]
[1735498663995,0.29791,3362.6,3362.4,1.7413]
[1735498664193,1.36156661,3362.6,3362.4,1.7413]
[1735498666491,0.29791,3362.5,3362.4,1.7413]
[1735498667295,1.36156661,3362.6,3362.4,1.7413]
[1735498669104,3.50959543,3362.6,3362.5,4.56936661]
[1735498670704,0.29788,3362.9,3362.6,0.2979]
[1735498670705,3.80747543,3362.9,3362.6,0.2979]
[1735498670997,0.29789,3362.8,3362.5,9.22843033]
[1735498671203,0.2979,3362.7,3362.5,8.93052033]
[1735498672095,0.2979,3362.7,3362.5,7.86686372]
[1735498672297,1.36155661,3362.6,3362.5,4.65906372]
[1735498673406,0.29791,3362.5,3362.4,1.7413]
[1735498676397,3.80750543,3362.6,3362.4,1.7413]
[1735498676597,0.29791,3362.5,3362.4,1.7413]
[1735498676799,3.80750543,3362.6,3362.4,1.7413]
[1735498678305,3.50959543,3362.6,3362.4,1.7413]
[1735498678611,0.29791,3362.5,3362.4,1.7413]
[1735498678905,0.29791,3362.5,3362.4,6.40036372]
[1735498679706,0.29791,3362.5,3362.4,1.7413]
[1735498679898,0.29791,3362.5,3362.4,1.1617]
[1735498680106,0.29792,3362.4,3362.3,4.65906372]
[1735498680904,0.29794,3362.3,3362.1,5.77826372]
[1735498683305,3.50959543,3362.4,3362.1,5.77826372]
[1735498683610,0.29794,3362.3,3362.1,5.77826372]
[1735498685707,0.29794,3362.3,3362.2,4.65906372]
[1735498690616,3.80753543,3362.3,3362.2,4.65906372]
[1735498693619,3.50959543,3362.3,3362.2,4.65906372]
[1735498693821,3.50959543,3362.3,3362.2,4.95700372]
[1735498694521,3.50959543,3362.3,3362.2,9.6798174]
[1735498695422,3.80752543,3362.3,3362.2,9.6798174]
[1735498695721,0.29793,3362.3,3362.2,5.02075368]
[1735498695920,0.29793,3362.3,3362.2,4.72281368]
[1735498697127,0.29793,3362.3,3362.2,11.74887435]
[1735498697519,1.36158654,3362.3,3362.2,11.74887435]
[1735498697822,1.36158654,3362.3,3362.2,7.02606067]
[1735498698022,2.21608654,3362.3,3362.2,7.02606067]
[1735498698322,7.04466621,3362.3,3362.1,4.68424314]
[1735498698519,0.29794,3362.2,3362.1,4.68424314]
[1735498699714,0.29794,3362.2,3361.7,9.30800713]
[1735498699715,0.4470491,3362.2,3361.8,4.68424314]
[1735498699920,0.29797,3361.9,3361.8,4.68424314]
[1735498701316,0.29797,3361.9,3361.7,7.02606067]
[1735498701317,0.4470491,3361.9,3361.5,3.2078]
[1735498701524,0.29799,3361.7,3361.5,3.2078]
[1735498702527,3.81115114,3361.7,3361.5,3.2078]
[1735498703425,0.29799,3361.6,3361.5,3.2078]
[1735498706827,0.29799,3361.6,3361.3,2.06412]
[1735498707029,0.29799,3361.6,3361.5,3.2078]
[1735498707525,0.29799,3361.7,3361.5,3.2078]
[1735498710628,2.33935162,3361.9,3361.5,3.2078]
[1735498710826,0.29799,3361.6,3361.5,3.2078]
[1735498712631,0.29799,3361.6,3361.3,2.06412]
[1735498712824,0.29799,3361.6,3361.5,3.2078]
[1735498714029,0.29799,3361.6,3361.3,2.06412]
[1735498714433,0.29799,3361.6,3361.5,3.2078]
[1735498715831,2.33935162,3361.9,3361.3,2.06412]
[1735498716130,0.298,3361.5,3361.3,2.06412]
[1735498716336,0.298,3361.6,3361.4,0.29801]
[1735498717130,0.298,3361.5,3361.4,0.29801]
[1735498717331,0.298,3361.5,3361.4,3.50581]
[1735498717935,0.298,3361.5,3361.4,3.2078]
[1735498718127,0.298,3361.5,3361.4,3.50581]
[1735498721646,0.298,3361.6,3361.4,3.50581]
[1735498728145,2.63733162,3361.8,3361.7,0.29798]
[1735498728346,2.33935162,3361.8,3361.4,3.2078]
[1735498728545,2.63733162,3361.8,3361.6,0.29799]
[1735498728939,2.63733162,3361.8,3361.7,0.5764]
[1735498729638,2.33935162,3361.8,3361.7,0.5764]
[1735498729844,2.63732162,3361.9,3361.7,0.5764]
[1735498730046,2.63732162,3361.9,3361.8,0.5604]
[1735498731649,2.33935162,3361.9,3361.8,0.5604]
[1735498732145,4.68421485,3362.2,3362.1,0.29795]
[1735498732448,0.03061485,3362.2,3362.1,4.56984516]
[1735498732644,0.03061485,3362.2,3362.1,9.56984516]
[1735498733743,0.29787,3363.0,3362.1,35.825964]
[1735498733947,0.29787,3363.0,3362.9,3.50568]
[1735498734649,0.29786,3363.1,3362.9,3.50568]
[1735498735038,0.29786,3363.2,3362.9,3.50568]
[1735498735644,1.06409516,3363.3,3362.9,3.50568]
[1735498735846,1.36194516,3363.3,3362.9,3.50568]
[1735498740351,1.36194516,3363.3,3362.9,0.29788]
[1735498740556,1.36194516,3363.3,3362.9,3.50568]
[1735498741357,0.29785,3363.3,3362.9,3.50568]
[1735498741556,0.29787,3363.0,3362.9,3.2078]
[1735498741861,0.29788,3362.9,3362.7,1.06409516]
[1735498742057,1.6671,3362.8,3362.7,1.06409516]
[1735498742261,1.6671,3362.8,3362.5,3.50571]
[1735498742460,1.6671,3362.8,3362.7,1.06409516]
[1735498749157,1.6671,3362.8,3362.7,1.36199516]
[1735498751870,0.29785,3363.2,3363.0,0.29786]
[1735498752070,0.29785,3363.2,3363.1,1.06409516]
[1735498752669,1.47515,3363.3,3363.1,1.36195516]
[1735498752968,1.1773,3363.3,3363.2,0.29785]
[1735498756376,0.29786,3363.1,3362.8,0.29788]
[1735498756576,1.36195516,3363.1,3362.7,3.50569]
[1735498756873,0.6042,3363.0,3362.8,1.36198516]
[1735498757070,0.6042,3363.0,3362.8,1.06409516]
[1735498757264,0.90207,3363.0,3362.8,1.06409516]
[1735498757461,0.90207,3363.0,3362.8,1.36198516]
[1735498757672,0.90207,3363.0,3362.8,1.06409516]
[1735498758571,1.06409516,3362.9,3362.7,3.2078]
[1735498758769,1.50329,3362.8,3362.7,2.2898]
[1735498758976,4.4132,3362.8,3362.2,4.67379578]
[1735498759171,1.36202516,3362.3,3362.2,4.67379578]
[1735498759469,1.36202516,3362.3,3362.0,4.67379578]
[1735498759470,0.29795,3362.1,3362.0,4.67379578]
[1735498759671,1.36204516,3362.1,3362.0,4.67379578]
[1735498761072,1.36204516,3362.1,3361.9,10.21849367]
[1735498761073,0.29796,3362.0,3361.9,3.2078]
[1735498761267,0.86226,3362.0,3361.9,3.2078]
[1735498761974,2.07116,3362.0,3361.9,3.2078]
[1735498764580,1.7732,3362.0,3361.9,3.2078]
[1735498765474,2.07116,3362.0,3361.9,3.2078]
[1735498768879,1.7732,3362.0,3361.9,3.2078]
[1735498770078,1.7732,3362.0,3361.8,0.5856]
[1735498771084,3.50571,3362.5,3362.0,0.29795]
[1735498771986,3.50571,3362.5,3361.9,2.84123042]
[1735498771987,3.2078,3362.5,3362.4,0.29792]
[1735498775787,3.2078,3362.5,3362.4,4.96645244]
[1735498776286,0.29789,3362.8,3362.5,0.29791]
[1735498776478,0.29789,3362.8,3362.6,0.9079]
[1735498777280,0.29789,3362.8,3362.7,0.2979]
[1735498778586,0.84978,3362.9,3362.8,0.29789]
[1735498778789,0.29789,3362.8,3362.7,0.29789]
[1735498780093,0.5519,3362.9,3362.6,0.61]
[1735498780094,0.84978,3362.9,3362.8,0.29789]
[1735498783393,0.5519,3362.9,3362.8,0.29789]
[1735498783586,0.84978,3362.9,3362.8,0.29789]
[1735498785886,0.5519,3362.9,3362.8,0.29789]
[1735498786694,0.84978,3362.9,3362.8,0.29789]
[1735498786992,0.5519,3362.9,3362.8,0.29789]
[1735498788194,0.84978,3362.9,3362.8,0.29789]
[1735498788786,0.2979,3362.7,3362.6,4.66853244]
[1735498790392,0.2979,3362.6,3362.5,0.29791]
[1735498790594,0.869,3362.6,3362.5,0.29791]
[1735498791292,0.5711,3362.6,3362.5,0.29791]
[1735498791487,0.869,3362.6,3362.5,0.29791]
[1735498792694,0.5519,3362.9,3362.8,0.29789]
[1735498794400,0.84978,3362.9,3362.8,0.29789]
[1735498795602,0.5519,3362.9,3362.8,0.29789]
[1735498800300,0.5519,3362.9,3362.8,1.36106626]
[1735498805605,0.5519,3362.9,3362.8,0.29789]
[1735498806507,0.5519,3362.9,3362.8,1.36106626]
[1735498807809,0.5519,3362.9,3362.8,6.0295987]
[1735498808908,0.5519,3362.9,3362.8,4.66853244]
[1735498809207,0.84978,3362.9,3362.8,0.53713244]
[1735498809405,0.29789,3362.8,3362.7,3.2078]
[1735498809606,1.36106626,3362.8,3362.7,3.2078]
[1735498810296,0.29789,3362.8,3362.7,3.2078]
[1735498811309,0.2979,3362.6,3362.3,1.36110626]
[1735498811809,0.5519,3362.9,3362.3,1.06317626]
[1735498812008,0.2979,3362.7,3362.4,0.29792]
[1735498812508,0.5949,3362.6,3362.4,0.29792]
[1735498812713,0.29794,3362.2,3362.1,7.00279866]
[1735498812910,3.50574,3362.2,3362.1,7.00279866]
[1735498813109,3.8027,3362.6,3362.1,7.00279866]
[1735498813312,0.5949,3362.6,3362.3,1.36110626]
[1735498813611,0.8928,3362.6,3362.3,1.36110626]
[1735498813915,0.5949,3362.6,3362.4,0.29792]
[1735498814112,1.61507626,3362.9,3362.6,0.2979]
[1735498814113,0.5519,3362.9,3362.6,0.2979]
[1735498814319,0.5519,3362.9,3362.8,1.06317626]
[1735498814607,0.5519,3362.9,3362.7,0.5949]
[1735498814815,0.29789,3362.8,3362.7,0.5949]
[1735498816411,1.36106626,3362.8,3362.7,0.5949]
[1735498819715,1.36106626,3362.8,3362.7,5.46443686]
[1735498821010,1.36106626,3362.8,3362.7,5.64443686]
[1735498822214,1.36106626,3362.8,3362.7,5.88233686]
[1735498822416,1.36106626,3362.8,3362.7,6.12023686]
[1735498823215,0.29789,3362.8,3362.7,6.12023686]
[1735498823910,0.29789,3362.8,3362.7,13.12303552]
[1735498824817,0.5519,3362.9,3362.8,0.29789]
[1735498825018,0.5519,3362.9,3362.7,13.42092552]
[1735498825210,0.5519,3362.9,3362.7,6.41812686]
[1735498825617,3.50923543,3363.0,3362.7,6.12023686]
[1735498825817,3.50923543,3363.0,3362.9,0.29788]
[1735498826516,3.50923543,3363.0,3362.8,12.45513552]